bitfinex/quotes_ETHUSD_20250220
["timestamp","ask_amount","ask_price","bid_price","bid_amount"]
[1740068803822,5.23,2728.4,2728.2,3.66533]
[1740068803954,5.23,2728.4,2728.3,3.66528]
[1740068804159,5.23,2728.4,2728.3,4.39026641]
[1740068804397,5.23,2728.4,2728.3,0.72498641]
[1740068805512,5.23,2728.4,2728.3,0.91027011]
[1740068806206,5.23,2728.6,2728.3,0.91027011]
[1740068806557,5.23,2728.6,2728.3,0.72498641]
[1740068806992,8.8949,2728.6,2728.3,0.72498641]
[1740068807513,3.66513,2728.5,2728.3,0.72498641]
[1740068807818,4.45629,2728.5,2728.3,0.72498641]
[1740068808292,5.23,2728.4,2728.3,0.72498641]
[1740068812855,5.23,2728.4,2728.3,4.39026641]
[1740068813013,5.23,2728.4,2728.3,5.33635011]
[1740068813200,5.23,2728.4,2728.3,6.23651912]
[1740068813912,5.23,2729.0,2728.8,3.66454]
[1740068814122,5.23,2729.1,2728.7,3.66472]
[1740068814498,5.23,2729.1,2728.8,3.66454]
[1740068814825,8.89424,2729.1,2728.7,3.66472]
[1740068815198,3.66435,2729.0,2728.6,3.66487]
[1740068815398,3.66435,2729.0,2728.5,3.665]
[1740068815600,3.66489,2728.6,2728.3,0.72498641]
[1740068815935,0.8317,2728.7,2728.1,8.234]
[1740068815936,3.66536,2728.3,2728.1,8.234]
[1740068816135,5.23,2728.2,2728.1,8.234]
[1740068816932,5.23,2728.2,2728.1,11.89955]
[1740068817112,5.23,2728.2,2728.1,13.44158525]
[1740068819820,5.23,2728.2,2728.1,13.62652841]
[1740068820148,5.23,2728.8,2728.6,3.66486]
[1740068821062,5.23,2728.8,2728.7,3.66474]
[1740068821230,5.23,2729.3,2729.0,3.66432]
[1740068821436,5.23,2729.4,2728.6,0.8161]
[1740068821740,0.015,2730.1,2729.2,4.48017]
[1740068821741,5.23,2729.3,2729.2,4.48017]
[1740068822055,6.7777721,2729.9,2729.2,4.48017]
[1740068822056,8.89334,2729.8,2729.2,4.48017]
[1740068822348,10.25753034,2729.8,2729.3,3.66393]
[1740068822549,10.25753034,2729.8,2729.3,3.95293]
[1740068822853,10.25753034,2729.8,2729.3,0.289]
[1740068823760,6.59419034,2729.8,2729.3,0.289]
[1740068823962,5.23,2729.8,2729.4,3.66375]
[1740068824121,5.23,2729.8,2729.3,0.289]
[1740068824327,5.23,2729.8,2729.3,3.95285]
[1740068824527,3.66341,2729.7,2729.3,0.47387938]
[1740068824923,3.66357,2729.6,2729.3,0.18487938]
[1740068825125,4.45206,2729.5,2729.3,0.18487938]
[1740068825427,6.7783121,2729.4,2729.3,0.18487938]
[1740068826256,9.7783121,2729.4,2729.3,0.18487938]
[1740068826558,9.7783121,2729.4,2728.9,0.18487938]
[1740068826559,11.3445121,2729.4,2728.9,0.18487938]
[1740068826867,4.48004,2729.0,2728.9,0.18487938]
[1740068827024,10.524466,2729.0,2728.9,0.18487938]
[1740068827640,3.66461,2728.8,2728.7,0.74987524]
[1740068828682,8.89461,2728.8,2728.7,0.74987524]
[1740068829028,4.46281,2728.5,2728.4,0.18487938]
[1740068829364,4.46281,2728.5,2728.2,0.29577815]
[1740068829365,10.139091,2728.5,2728.2,0.29577815]
[1740068829553,9.69281,2728.5,2728.2,0.29577815]
[1740068829753,9.69281,2728.5,2728.4,0.74155885]
[1740068832256,5.23,2728.5,2728.4,0.74155885]
[1740068832769,8.89501,2728.5,2728.4,0.74155885]
[1740068833077,5.23,2728.5,2728.4,0.74155885]
[1740068833255,8.89501,2728.5,2728.4,0.74155885]
[1740068833695,5.23,2728.5,2728.4,0.74155885]
[1740068838974,9.784499,2728.5,2728.4,0.74155885]
[1740068839175,3.66515,2728.4,2728.3,0.18496831]
[1740068839408,3.66515,2728.4,2728.3,0.90180707]
[1740068839409,8.04525,2728.4,2728.3,0.90180707]
[1740068839700,8.04525,2728.4,2727.5,9.0667]
[1740068839701,3.66622,2727.6,2727.5,8.234]
[1740068839877,8.89622,2727.6,2727.5,8.234]
[1740068840079,8.89622,2727.6,2727.5,8.95971943]
[1740068840486,11.89622,2727.6,2727.5,8.95971943]
[1740068841403,3.66683,2727.2,2726.6,3.99869]
[1740068841565,5.23,2727.1,2726.6,3.99869]
[1740068841771,8.89693,2727.1,2726.6,3.99869]
[1740068842000,3.66705,2727.0,2726.6,0.3312]
[1740068842200,3.66705,2727.0,2726.6,0.0432]
[1740068842715,5.23,2727.1,2726.6,3.71075]
[1740068842903,5.23,2727.1,2726.9,0.74641548]
[1740068843070,10.153278,2727.1,2726.9,0.74641548]
[1740068843603,5.23,2727.1,2726.9,0.74641548]
[1740068843803,5.23,2727.1,2726.9,4.41357548]
[1740068843978,5.23,2727.1,2726.9,0.74641548]
[1740068844902,5.23,2727.2,2726.9,0.74641548]
[1740068845484,5.23,2727.2,2726.9,4.41356548]
[1740068845683,5.23,2727.2,2726.9,0.74641548]
[1740068845897,5.23,2727.2,2727.1,3.66689]
[1740068846203,3.66691,2727.1,2726.9,0.74641548]
[1740068846622,6.5698,2727.2,2726.9,0.74641548]
[1740068846826,10.23656,2727.2,2726.9,0.74641548]
[1740068847028,10.23658,2727.2,2726.9,0.74641548]
[1740068847429,6.5698,2727.2,2726.9,0.74641548]
[1740068847729,10.23657,2727.2,2726.9,0.74641548]
[1740068848119,6.0468,2727.2,2726.9,0.74641548]
[1740068848431,5.23,2727.2,2727.1,3.66689]
[1740068848596,5.23,2727.2,2726.9,1.55221548]
[1740068848796,8.89683,2727.2,2726.9,0.74641548]
[1740068849231,5.23,2727.2,2726.9,0.74641548]
[1740068849430,8.89683,2727.2,2726.9,0.74641548]
[1740068849640,9.786513,2727.2,2726.9,0.74641548]
[1740068849831,6.119683,2727.2,2726.9,0.74641548]
[1740068850332,3.66691,2727.1,2726.9,0.74641548]
[1740068850536,7.3339,2727.1,2726.9,0.74641548]
[1740068850738,5.23,2727.0,2726.9,0.74641548]
[1740068851031,8.89703,2727.0,2726.9,0.74641548]
[1740068851230,10.2423923,2727.0,2726.9,0.74641548]
[1740068851736,6.5753623,2727.0,2726.9,0.74641548]
[1740068851932,5.23,2727.0,2726.9,0.74641548]
[1740068853436,5.23,2727.0,2726.9,4.41357548]
[1740068855058,5.23,2727.0,2726.9,5.21947548]
[1740068855354,5.23,2727.0,2726.9,0.74641548]
[1740068857538,3.66743,2726.7,2726.6,0.0432]
[1740068857771,6.78673331,2726.7,2726.6,0.0432]
[1740068858862,3.11930331,2726.7,2726.6,0.0432]
[1740068859064,1.2973,2726.9,2726.6,0.0432]
[1740068859229,4.99875033,2726.8,2726.6,0.0432]
[1740068859425,8.66614033,2726.8,2726.6,0.0432]
[1740068859655,15.58173331,2726.7,2726.6,0.0432]
[1740068859843,13.23673,2726.7,2726.6,0.0432]
[1740068861732,10.22173,2726.7,2726.6,0.0432]
[1740068861931,12.10800836,2726.7,2726.6,0.0432]
[1740068862134,11.55800836,2726.7,2726.6,0.0432]
[1740068862435,9.67173,2726.7,2726.6,0.0432]
[1740068863737,5.23,2726.7,2726.6,3.71077]
[1740068863945,5.23,2726.7,2726.6,0.8079]
[1740068864446,5.23,2726.7,2726.6,4.47547]
[1740068864844,5.23,2726.7,2726.6,0.0432]
[1740068865046,9.42043,2726.7,2726.6,0.0432]
[1740068865569,9.97043,2726.7,2726.6,0.0432]
[1740068867581,5.753,2726.7,2726.6,0.0432]
[1740068867865,5.23,2726.7,2726.6,0.0432]
[1740068868067,5.23,2726.7,2726.6,4.50547]
[1740068868272,5.23,2726.7,2726.6,0.8379]
[1740068868639,5.23,2727.1,2726.6,0.8379]
[1740068868840,5.23,2727.1,2726.8,3.66722]
[1740068869070,5.23,2727.1,2726.6,4.50535]
[1740068869273,5.23,2727.1,2726.7,3.66741]
[1740068870004,8.89697,2727.1,2726.6,0.8379]
[1740068870210,5.23,2727.1,2726.7,3.66742]
[1740068870411,5.23,2727.1,2726.7,4.484713]
[1740068870603,5.23,2727.0,2726.9,4.45558]
[1740068870804,5.23,2727.0,2726.9,4.74366]
[1740068871394,5.23,2727.0,2726.9,5.48871742]
[1740068871588,5.23,2727.0,2726.9,6.28881255]
[1740068872103,5.23,2727.7,2727.4,3.6664]
[1740068872418,3.66583,2727.9,2727.2,3.6667]
[1740068872419,5.23,2727.8,2727.2,3.6667]
[1740068872715,8.896,2727.8,2727.3,3.6666]
[1740068873327,3.66613,2727.7,2727.2,3.66673]
[1740068873489,3.66613,2727.7,2727.4,0.18495618]
[1740068873890,5.23,2727.8,2727.4,0.18495618]
[1740068874394,3.66609,2727.7,2727.4,0.18495618]
[1740068874813,5.23,2727.8,2727.4,0.18495618]
[1740068875530,5.23,2727.8,2727.7,3.66609]
[1740068875710,5.23,2727.8,2727.7,3.95409]
[1740068877000,5.23,2728.3,2727.7,1.069]
[1740068877202,3.66503,2728.5,2728.0,3.66561]
[1740068877408,3.66503,2728.5,2727.8,3.66587]
[1740068877596,0.889503,2728.4,2727.8,3.66587]
[1740068877996,3.66535,2728.3,2727.8,3.66587]
[1740068878200,3.66543,2728.2,2727.9,0.288]
[1740068878498,4.47622,2728.2,2727.7,4.92003618]
[1740068878730,3.66555,2728.1,2727.7,1.25395618]
[1740068878897,3.66595,2727.8,2727.7,0.47295618]
[1740068879206,8.89595,2727.8,2727.7,0.288]
[1740068879608,5.23,2727.8,2727.7,0.288]
[1740068880021,5.23,2727.8,2727.7,3.95409]
[1740068880519,5.23,2727.8,2727.7,0.288]
[1740068881065,5.23,2727.8,2727.7,3.95409]
[1740068881695,5.23,2728.1,2728.0,4.43398]
[1740068881894,3.26353813,2728.1,2728.0,4.43398]
[1740068882106,1.82429813,2728.1,2728.0,4.43398]
[1740068883250,1.82429813,2728.1,2728.0,0.95256377]
[1740068883723,1.82429813,2728.1,2728.0,1.73573076]
[1740068883912,1.82429813,2728.1,2728.0,5.40141076]
[1740068884129,1.82429813,2728.1,2728.0,1.73573076]
[1740068884517,1.82429813,2728.1,2728.0,5.40141076]
[1740068884925,1.06538813,2728.1,2728.0,5.40141076]
[1740068885152,1.06538813,2728.1,2728.0,5.21714699]
[1740068887525,1.06538813,2728.1,2728.0,5.50514699]
[1740068890445,1.06538813,2728.1,2728.0,5.68895483]
[1740068891518,1.06538813,2728.1,2728.0,5.40095483]
[1740068891719,1.06538813,2728.1,2728.0,4.90578784]
[1740068892748,1.06538813,2728.1,2728.0,4.61778784]
[1740068892959,1.06538813,2728.1,2728.0,4.90578784]
[1740068893145,1.06538813,2728.1,2728.0,8.02136978]
[1740068893456,1.06538813,2728.1,2728.0,4.90578784]
[1740068894725,1.06538813,2728.1,2728.0,0.18380784]
[1740068894922,1.06538813,2728.1,2728.0,4.13748784]
[1740068895354,6.29538813,2728.1,2728.0,3.95368]
[1740068896756,6.29538813,2728.1,2728.0,4.70598]
[1740068898142,6.29538813,2728.1,2728.0,4.89023399]
[1740068898530,5.23,2728.7,2728.6,3.66488]
[1740068898758,5.23,2729.0,2728.7,3.66464]
[1740068899270,5.23,2729.0,2728.6,3.66486]
[1740068899568,5.23,2729.0,2728.6,7.32964]
[1740068899765,5.23,2729.0,2728.6,3.66478]
[1740068900365,5.23,2729.0,2728.7,3.66472]
[1740068901266,5.23,2729.0,2728.6,3.66488]
[1740068901432,5.23,2729.0,2728.7,3.66468]
[1740068902045,5.23,2729.0,2728.9,0.71845301]
[1740068905467,5.23,2729.0,2728.5,0.8047]
[1740068905672,5.23,2729.0,2728.6,3.66475]
[1740068906170,5.23,2729.0,2728.6,0.288]
[1740068906171,10.226324,2729.0,2728.6,0.288]
[1740068906468,10.226234,2729.0,2728.6,1.03320579]
[1740068906839,3.66449,2728.9,2728.6,1.03320579]
[1740068907056,6.561874,2729.0,2728.6,1.03320579]
[1740068907266,3.6647,2728.8,2728.6,1.03320579]
[1740068907453,3.6645,2728.9,2728.6,1.03320579]
[1740068907660,10.226274,2729.0,2728.6,1.03320579]
[1740068908365,1.4650874,2728.9,2728.6,0.74520579]
[1740068909239,5.1295874,2728.9,2728.6,0.74520579]
[1740068909439,3.66463,2728.8,2728.6,0.93020088]
[1740068909676,4.47904,2728.7,2728.6,0.18499509]
[1740068910376,9.70904,2728.7,2728.6,0.18499509]
[1740068910550,11.50447393,2728.7,2728.6,0.18499509]
[1740068910874,11.50447393,2728.7,2728.1,0.288]
[1740068910875,3.66515,2728.5,2728.2,0.18499509]
[1740068911068,9.70908,2728.7,2728.2,0.18499509]
[1740068911277,3.66495,2728.6,2728.2,0.18499509]
[1740068911869,3.66508,2728.5,2728.2,0.18499509]
[1740068912240,3.66528,2728.4,2728.2,0.18499509]
[1740068912438,3.6651,2728.5,2728.2,0.18499509]
[1740068912742,3.66488,2728.6,2728.2,0.18499509]
[1740068912943,5.23,2728.7,2728.6,3.66488]
[1740068913452,5.23,2728.7,2728.4,3.66513]
[1740068913769,5.23,2728.7,2728.4,3.66508]
[1740068914480,5.23,2728.7,2728.5,3.665]
[1740068914856,5.23,2728.7,2728.4,3.66515]
[1740068915056,5.23,2728.7,2728.5,0.18499509]
[1740068915765,5.23,2728.7,2728.5,3.84999509]
[1740068915966,5.23,2728.7,2728.5,0.18499509]
[1740068916362,5.23,2728.7,2728.5,3.84998509]
[1740068916569,5.23,2728.7,2728.6,3.66488]
[1740068916754,5.23,2728.7,2728.6,4.41636651]
[1740068916951,5.23,2728.7,2728.6,4.6013616]
[1740068917359,5.23,2728.7,2728.6,5.34136035]
[1740068919080,5.23,2728.7,2728.6,1.67648035]
[1740068919258,5.23,2728.7,2728.6,0.92499384]
[1740068919456,9.66944,2728.7,2728.6,0.18499509]
[1740068919749,6.0047,2728.7,2728.6,0.18499509]
[1740068920755,6.0047,2728.7,2728.3,3.66518]
[1740068921083,6.0047,2728.7,2728.2,0.74557589]
[1740068921084,3.66491,2728.6,2728.2,0.74557589]
[1740068921288,6.0047,2728.7,2728.3,3.66528]
[1740068921784,5.23,2728.7,2728.4,4.48164]
[1740068921983,5.23,2728.7,2728.6,3.66488]
[1740068922188,5.23,2728.8,2728.6,3.66488]
[1740068922487,5.23,2728.8,2728.4,0.8165]
[1740068923065,5.23,2728.8,2728.4,3.66507]
[1740068923783,5.23,2728.8,2728.5,3.66501]
[1740068924181,5.23,2728.8,2728.5,3.66494]
[1740068924378,5.23,2728.8,2728.5,3.66493]
[1740068924684,5.23,2728.8,2728.7,3.66474]
[1740068924884,5.23,2728.8,2728.4,3.66507]
[1740068925112,5.23,2728.8,2728.5,0.60111032]
[1740068925406,5.23,2728.9,2728.8,3.66461]
[1740068925557,5.23,2728.9,2728.8,3.95261]
[1740068926185,5.23,2728.9,2728.8,0.288]
[1740068926987,5.23,2728.9,2728.8,3.95261]
[1740068927186,5.23,2728.9,2728.8,0.288]
[1740068927796,9.65148,2728.9,2728.8,0.288]
[1740068928093,6.952148,2728.9,2728.8,0.288]
[1740068928288,5.23,2728.9,2728.8,0.288]
[1740068928488,5.23,2728.9,2728.8,4.73121]
[1740068928805,0.757,2729.4,2728.8,4.73121]
[1740068928806,5.23,2729.3,2728.8,1.0666]
[1740068929005,5.23,2729.3,2729.0,3.66428]
[1740068929256,5.23,2729.3,2728.9,3.66441]
[1740068929390,5.23,2729.3,2729.0,3.66421]
[1740068930091,5.23,2729.3,2729.1,0.74643731]
[1740068931779,5.23,2729.3,2729.1,4.41062731]
[1740068931971,5.23,2729.3,2729.1,0.74643731]
[1740068934000,8.89381,2729.4,2729.1,0.74643731]
[1740068934413,5.23,2729.4,2729.1,0.74643731]
[1740068934611,5.23,2729.4,2729.1,4.41064731]
[1740068934813,5.23,2729.4,2729.3,3.66394]
[1740068935130,5.23,2729.4,2729.2,3.66401]
[1740068935621,5.23,2729.4,2729.1,1.55393704]
[1740068935824,0.7874,2729.3,2729.1,0.74643731]
[1740068936025,4.4514,2729.3,2729.1,0.74643731]
[1740068936319,3.66407,2729.2,2729.1,0.74643731]
[1740068936701,7.42747,2729.2,2729.1,0.74643731]
[1740068937640,3.66472,2728.8,2728.5,8.233]
[1740068937825,3.66488,2728.6,2728.5,8.233]
[1740068938026,5.23,2728.6,2728.5,8.233]
[1740068938396,5.23,2728.6,2728.3,1.82640256]
[1740068938897,5.23,2728.6,2728.5,0.73095745]
[1740068939102,5.23,2728.6,2728.5,5.18586745]
[1740068939319,5.23,2728.6,2728.5,6.25360945]
[1740068940626,5.23,2728.6,2728.5,5.46370945]
[1740068940928,5.23,2728.6,2728.5,0.73095745]
[1740068941492,5.23,2728.6,2728.5,4.39596745]
[1740068941693,5.23,2728.6,2728.5,0.73095745]
[1740068942242,5.23,2728.6,2728.3,2.58190256]
[1740068942444,0.7636,2728.5,2728.3,1.82640256]
[1740068942796,5.23,2728.4,2728.3,1.82640256]
[1740068942996,5.23,2728.4,2728.3,2.54341884]
[1740068943246,5.23,2728.4,2728.3,2.25541884]
[1740068944162,8.89515,2728.4,2728.3,2.25541884]
[1740068944298,10.227515,2728.4,2728.3,2.25541884]
[1740068945333,8.89515,2728.4,2728.3,2.25541884]
[1740068945733,5.23,2728.4,2728.3,2.25541884]
[1740068949508,5.23,2728.4,2728.3,5.92069884]
[1740068950231,5.23,2728.4,2728.3,2.25541884]
[1740068950642,9.67095,2728.4,2728.3,2.25541884]
[1740068950804,11.004548,2728.4,2728.3,2.25541884]
[1740068951428,7.339398,2728.4,2728.3,2.25541884]
[1740068951639,6.0058,2728.4,2728.3,2.25541884]
[1740068952099,6.0058,2728.4,2728.3,5.92069884]
[1740068952100,5.23,2728.4,2728.3,5.92069884]
[1740068952525,5.23,2728.7,2728.6,3.66488]
[1740068952705,5.23,2728.7,2728.6,4.45858]
[1740068952906,5.23,2728.7,2728.6,5.270937]
[1740068954439,5.23,2728.7,2728.6,0.812357]
[1740068954606,5.23,2728.7,2728.5,3.66499]
[1740068954806,5.23,2728.7,2728.3,6.69882884]
[1740068955019,5.23,2728.7,2728.4,3.66513]
[1740068955231,5.23,2728.7,2728.3,6.69882884]
[1740068955442,3.66491,2728.6,2728.3,2.25541884]
[1740068955638,8.89477,2728.7,2728.3,2.25541884]
[1740068955943,9.53474361,2728.7,2728.3,2.25541884]
[1740068957743,8.89491,2728.6,2728.3,2.25541884]
[1740068958119,5.23,2728.6,2728.3,2.25541884]
[1740068960141,5.23,2728.6,2728.3,5.92067884]
[1740068960512,5.23,2728.6,2728.5,3.66501]
[1740068960844,5.23,2728.6,2728.5,4.25705288]
[1740068961051,5.23,2728.6,2728.3,2.25541884]
[1740068961341,5.23,2728.6,2728.3,5.92062884]
[1740068961838,5.23,2728.6,2728.4,3.66508]
[1740068962041,5.23,2728.6,2728.3,2.25541884]
[1740068962360,5.23,2728.6,2728.5,3.66501]
[1740068962566,5.23,2728.6,2728.5,5.26042763]
[1740068963761,0.7531,2729.0,2728.6,3.6648]
[1740068963762,5.23,2728.9,2728.6,3.6648]
[1740068966396,5.23,2728.9,2728.7,3.66468]
[1740068966529,5.23,2728.9,2728.8,3.66461]
[1740068967631,5.23,2728.9,2728.7,3.66467]
[1740068968320,5.23,2728.9,2728.8,3.66461]
[1740068968738,5.23,2728.9,2728.8,0.75117129]
[1740068968929,5.23,2728.9,2728.8,4.41578129]
[1740068969132,4.41594,2729.3,2728.8,5.22382642]
[1740068969133,5.23,2729.2,2728.8,5.22382642]
[1740068969338,5.23,2729.2,2728.9,3.6644]
[1740068969671,5.23,2729.2,2729.0,3.66426]
[1740068969971,5.23,2729.2,2729.1,3.66421]
[1740068970471,5.23,2729.2,2729.1,4.41441]
[1740068971839,5.23,2729.2,2729.1,5.250977]
[1740068972777,5.23,2729.6,2729.5,3.66367]
[1740068972958,5.23,2730.0,2729.6,3.66353]
[1740068973859,5.23,2730.0,2729.4,3.66374]
[1740068973860,8.89309,2730.0,2729.5,3.66365]
[1740068974177,8.89309,2730.0,2729.4,3.66374]
[1740068974178,8.89309,2730.0,2729.6,3.66352]
[1740068974771,5.23,2730.0,2729.2,3.66405]
[1740068975069,5.23,2730.0,2729.7,3.66327]
[1740068976070,5.23,2730.0,2729.7,0.72238686]
[1740068976274,5.23,2730.0,2729.7,4.38570686]
[1740068976588,5.23,2730.0,2729.9,3.66313]
[1740068977173,5.23,2730.0,2729.8,0.287]
[1740068977584,5.23,2730.0,2729.8,3.9502]
[1740068977756,5.23,2730.0,2729.9,3.66313]
[1740068978480,3.66286,2730.2,2729.8,0.83209869]
[1740068978657,5.23,2730.1,2729.8,0.287]
[1740068978857,8.89296,2730.1,2729.8,0.287]
[1740068979378,5.23,2730.1,2729.8,0.287]
[1740068979744,8.89287,2730.1,2729.8,0.287]
[1740068979946,5.23,2730.1,2729.8,0.287]
[1740068980148,5.23,2730.1,2729.8,3.95016]
[1740068980374,5.23,2730.1,2729.8,0.287]
[1740068981346,8.89294,2730.1,2729.8,0.287]
[1740068981660,4.42866,2730.0,2729.8,0.287]
[1740068981889,3.66313,2729.9,2729.4,0.287]
[1740068982088,3.66348,2729.7,2729.4,0.287]
[1740068983095,3.66348,2729.7,2729.4,1.01021762]
[1740068984507,5.23,2729.6,2729.4,1.01021762]
[1740068984713,3.66363,2729.6,2729.4,1.01021762]
[1740068985008,3.66341,2729.7,2729.4,1.01021762]
[1740068986310,3.6636,2729.6,2729.4,1.01021762]
[1740068986508,3.66341,2729.7,2729.4,1.01021762]
[1740068986691,3.66335,2729.8,2729.4,1.01021762]
[1740068986692,7.32671,2729.8,2729.4,1.01021762]
[1740068986893,3.66335,2729.8,2729.4,1.01021762]
[1740068987305,5.23,2729.9,2729.4,4.67394762]
[1740068987479,5.23,2729.9,2729.6,0.7522]
[1740068987682,5.23,2729.9,2729.8,3.66327]
[1740068987982,5.23,2729.9,2729.7,3.6634]
[1740068988175,5.23,2729.9,2729.6,4.41565]
[1740068988377,5.23,2729.9,2729.7,3.66337]
[1740068988614,5.23,2729.9,2729.7,4.471194]
[1740068989330,5.23,2730.2,2729.9,3.66304]
[1740068989530,5.23,2730.3,2729.9,3.66304]
[1740068989717,5.23,2730.3,2729.8,3.66318]
[1740068989923,5.23,2730.3,2729.8,4.1855794]
[1740068989924,8.89267,2730.3,2729.8,4.1855794]
[1740068990138,8.89267,2730.3,2729.8,3.66325]
[1740068990436,3.66281,2730.2,2729.7,3.66338]
[1740068990729,12.55537,2730.3,2729.7,3.66329]
[1740068990896,5.23,2730.3,2729.8,3.66324]
[1740068991092,5.23,2730.3,2729.9,0.366324]
[1740068991299,5.23,2730.3,2730.1,3.6628]
[1740068991515,5.23,2730.3,2730.1,0.73355335]
[1740068994422,8.89261,2730.3,2730.1,0.73355335]
[1740068994932,5.23,2730.3,2730.1,0.73355335]
[1740068995326,8.8926,2730.3,2730.1,0.73355335]
[1740068995713,5.23,2730.3,2730.1,0.73355335]
[1740068996116,3.66273,2730.2,2730.1,0.73355335]
[1740068996445,5.736469,2730.2,2730.1,0.73355335]
[1740068996652,3.66298,2730.1,2729.5,4.47282]
[1740068996946,4.45077,2729.8,2729.6,0.287]
[1740068997126,8.8934,2729.7,2729.6,0.287]
[1740068997510,8.8934,2729.7,2729.3,9.0504]
[1740068997715,8.8934,2729.7,2729.4,0.287]
[1740068997950,3.66355,2729.6,2729.4,0.287]
[1740068998318,5.23,2729.7,2729.5,0.72837019]
[1740068998520,8.89347,2729.7,2729.5,0.72837019]
[1740068999648,5.23,2729.7,2729.5,0.72837019]
[1740068999853,3.66354,2729.6,2729.5,0.72837019]
[1740069000249,8.89341,2729.7,2729.5,0.72837019]
[1740069000950,5.23,2729.7,2729.6,3.66354]
[1740069001343,5.23,2730.1,2729.6,0.8306]
[1740069001519,5.23,2730.1,2730.0,4.4936]
[1740069002153,5.23,2730.1,2730.0,0.8306]
[1740069002340,5.23,2730.1,2730.0,5.309292]
[1740069003233,5.23,2730.4,2730.2,3.66265]
[1740069003527,3.92268194,2731.0,2730.0,1.646292]
[1740069003528,5.23,2730.7,2730.3,3.94947]
[1740069003728,5.23,2730.7,2730.4,0.7561]
[1740069004552,5.23,2730.8,2730.4,0.79272242]
[1740069004853,5.23,2730.8,2730.5,3.66224]
[1740069005055,5.23,2730.8,2730.6,0.44549624]
[1740069005821,5.23,2730.8,2730.7,0.7452318]
[1740069006041,3.66063,2731.8,2730.7,4.4072918]
[1740069006042,5.23,2731.4,2730.7,4.4072918]
[1740069006232,8.89113,2731.4,2730.9,3.66174]
[1740069006445,4.42121,2731.2,2730.7,4.4072918]
[1740069006648,4.42121,2731.2,2730.7,5.28973898]
[1740069007241,4.42122,2731.2,2730.7,1.62767898]
[1740069007560,4.42122,2731.2,2730.7,5.28969898]
[1740069008063,4.42122,2731.2,2730.7,1.62767898]
[1740069008064,3.66153,2731.1,2730.7,1.62767898]
[1740069008265,4.42122,2731.2,2730.7,1.62767898]
[1740069008568,4.42122,2731.2,2730.8,0.5289809]
[1740069008743,4.42122,2731.2,2730.7,0.7452318]
[1740069009067,0.7598,2731.2,2730.7,0.7452318]
[1740069009277,5.23,2731.4,2731.0,0.7676]
[1740069009441,5.23,2731.4,2731.1,0.287]
[1740069009840,3.66133,2731.3,2731.1,0.287]
[1740069010155,3.66139,2731.2,2731.1,0.287]
[1740069011356,5.23,2731.4,2731.1,0.287]
[1740069011969,4.47179,2731.2,2731.1,0.287]
[1740069012160,3.66193,2730.8,2730.2,0.8235]
[1740069012469,3.66193,2730.8,2730.3,0.287]
[1740069012470,3.66226,2730.6,2730.3,0.287]
[1740069012666,3.66242,2730.5,2730.3,0.287]
[1740069012870,5.23,2730.6,2730.3,0.287]
[1740069013039,3.6624,2730.5,2730.4,0.7340149]
[1740069013436,3.66246,2730.4,2730.3,0.287]
[1740069013665,3.66246,2730.4,2730.1,0.287]
[1740069014374,8.8926,2730.3,2730.1,0.287]
[1740069014887,3.66273,2730.2,2730.1,0.287]
[1740069015175,5.23,2730.2,2730.0,0.73791133]
[1740069015468,3.66251,2730.4,2730.0,0.73791133]
[1740069015469,3.66254,2730.4,2730.0,0.73791133]
[1740069015678,3.66226,2730.6,2730.1,3.66284]
[1740069015846,3.66201,2730.8,2730.2,0.51887513]
[1740069016175,3.66234,2730.5,2730.2,0.51887513]
[1740069016376,3.66234,2730.5,2730.0,1.52591133]
[1740069016560,0.7675,2730.5,2730.0,0.73791133]
[1740069016767,3.66267,2730.3,2730.0,0.73791133]
[1740069017265,3.66209,2730.7,2730.1,3.66277]
[1740069017469,3.66227,2730.6,2730.1,3.66277]
[1740069017668,3.66227,2730.6,2730.1,4.65159222]
[1740069017867,3.7675,2730.8,2730.1,0.98882222]
[1740069018082,3.66219,2730.6,2730.0,0.73791133]
[1740069018464,8.09156,2730.8,2730.2,3.66272]
[1740069018657,4.4295,2730.8,2730.2,4.46982]
[1740069018859,3.66234,2730.5,2730.2,0.8071]
[1740069019061,3.6625,2730.4,2730.0,1.54501133]
[1740069019265,3.66215,2730.7,2730.0,5.91117055]
[1740069019578,3.66228,2730.6,2730.0,5.94779693]
[1740069019744,3.66242,2730.5,2730.0,5.91117055]
[1740069020478,7.32483,2730.5,2730.0,5.91117055]
[1740069020873,0.7675,2730.8,2730.0,0.73791133]
[1740069020874,3.66275,2730.2,2730.0,0.73791133]
[1740069021079,3.66286,2730.1,2730.0,0.73791133]
[1740069021452,3.663,2730.0,2729.9,1.5375009]
[1740069021674,3.66327,2729.8,2729.7,0.287]
[1740069021876,0.7623,2730.3,2729.7,1.0625]
[1740069022176,3.66273,2730.2,2729.7,1.0625]
[1740069022378,3.66296,2730.1,2729.7,1.0625]
[1740069022557,6.77684194,2731.3,2729.9,0.7769]
[1740069022745,3.94113854,2731.0,2730.4,0.7769]
[1740069023081,3.94113854,2731.0,2730.5,3.6623]
[1740069023082,3.66168,2731.0,2730.5,3.6623]
[1740069023267,3.66168,2731.0,2730.5,0.287]
[1740069023778,3.66195,2730.8,2730.5,0.287]
[1740069024687,3.6619,2730.9,2730.5,0.287]
[1740069025183,3.66195,2730.8,2730.5,0.287]